bitfinex/quotes_SOLUSD_20250326
["timestamp","ask_amount","ask_price","bid_price","bid_amount"]
[1743022206218,0.063,138.56,138.55,97.75558056]
[1743022206908,0.063,138.56,138.55,104.97318056]
[1743022207114,0.063,138.56,138.55,105.11534213]
[1743022207603,0.063,138.56,138.55,97.89774213]
[1743022208097,0.063,138.56,138.55,82.537]
[1743022208780,0.063,138.56,138.55,97.75558056]
[1743022209098,0.063,138.56,138.55,97.89774213]
[1743022210395,0.063,138.56,138.55,105.11534213]
[1743022210599,0.063,138.56,138.55,104.97318056]
[1743022210780,0.063,138.56,138.55,105.11534213]
[1743022210979,0.063,138.56,138.55,97.75558056]
[1743022217989,0.063,138.56,138.55,82.537]
[1743022221912,0.063,138.56,138.54,15.21858056]
[1743022223017,0.063,138.56,138.55,15.21858056]
[1743022226822,0.063,138.56,138.54,15.21858056]
[1743022228201,0.063,138.56,138.53,82.6]
[1743022229508,0.063,138.56,138.53,0.063]
[1743022229711,0.063,138.56,138.53,15.28158056]
[1743022230012,7.28,138.56,138.53,15.28158056]
[1743022233924,7.28,138.56,138.53,0.063]
[1743022236227,15.21858056,138.55,138.53,0.063]
[1743022236416,7.28,138.56,138.53,0.063]
[1743022236417,15.21858056,138.54,138.53,0.063]
[1743022236617,15.21858056,138.55,138.53,0.063]
[1743022236814,40.54128056,138.56,138.53,0.063]
[1743022237205,15.21858056,138.55,138.53,0.063]
[1743022237608,15.21858056,138.54,138.53,0.063]
[1743022237823,22.43668056,138.54,138.53,0.063]
[1743022238758,107.6363028,138.54,138.47,0.03]
[1743022238908,15.21858056,138.5,138.47,0.03]
[1743022239812,7.2207,138.49,138.47,0.03]
[1743022240130,22.43818056,138.51,138.47,0.03]
[1743022240836,0.063,138.56,138.47,82.85132314]
[1743022241130,15.21858056,138.54,138.49,15.21858056]
[1743022241709,15.21858056,138.54,138.5,15.21858056]
[1743022241911,22.43688056,138.54,138.5,15.21858056]
[1743022242628,7.2183,138.54,138.5,15.21858056]
[1743022244619,7.2183,138.54,138.5,15.24858056]
[1743022245714,7.2183,138.54,138.5,22.46858056]
[1743022246217,22.43638056,138.55,138.51,15.21858056]
[1743022246512,7.2178,138.55,138.51,15.21858056]
[1743022247244,7.2178,138.55,138.52,15.21858056]
[1743022247449,0.063,138.56,138.54,15.21858056]
[1743022247927,0.063,138.56,138.55,15.21858056]
[1743022248130,0.063,138.56,138.55,99.6909037]
[1743022249329,0.063,138.56,138.55,106.9085037]
[1743022252230,0.03,138.57,138.56,0.14216157]
[1743022252543,0.03,138.57,138.56,15.36074213]
[1743022254156,0.03,138.57,138.56,22.57774213]
[1743022255149,0.03,138.57,138.56,41.36955256]
[1743022257234,0.03,138.57,138.56,123.90655256]
[1743022260052,0.03,138.57,138.56,105.2569037]
[1743022260417,0.03,138.57,138.56,82.537]
[1743022260639,0.03,138.57,138.56,97.75558056]
[1743022260851,0.03,138.57,138.56,123.90655256]
[1743022261142,0.063,138.61,138.58,0.14216157]
[1743022261328,0.063,138.61,138.6,15.21858056]
[1743022261529,0.063,138.61,138.6,76.37722594]
[1743022261729,0.063,138.62,138.61,0.14216157]
[1743022261922,0.063,138.62,138.61,97.89774213]
[1743022262323,0.063,138.62,138.61,105.11214213]
[1743022263332,0.063,138.62,138.61,97.75558056]
[1743022263642,0.063,138.62,138.61,105.11214213]
[1743022268847,0.063,138.62,138.61,105.17514213]
[1743022269749,0.063,138.62,138.61,105.3173037]
[1743022273328,0.063,138.62,138.61,123.96695256]
[1743022273731,0.03,138.66,138.62,0.14216157]
[1743022273946,0.03,138.66,138.65,15.21858056]
[1743022275647,0.03,138.66,138.65,22.43098056]
[1743022276651,0.03,138.66,138.65,15.21858056]
[1743022280758,0.03,138.66,138.62,82.537]
[1743022280958,15.24858056,138.66,138.61,15.28158056]
[1743022281144,0.03,138.66,138.61,0.063]
[1743022281341,0.03,138.66,138.65,15.21858056]
[1743022282559,0.03,138.66,138.64,15.21858056]
[1743022284058,0.03,138.66,138.63,15.21858056]
[1743022285764,0.03,138.66,138.64,15.21858056]
[1743022286857,15.24858056,138.66,138.62,0.063]
[1743022287061,0.03,138.66,138.63,15.21858056]
[1743022287253,0.03,138.66,138.64,15.21858056]
[1743022287969,0.03,138.66,138.63,15.21858056]
[1743022288279,15.21858056,138.65,138.62,0.063]
[1743022288773,15.21858056,138.64,138.62,0.063]
[1743022288947,16.83758056,138.65,138.62,0.063]
[1743022289876,7.2129,138.64,138.62,0.063]
[1743022309879,7.2129,138.64,138.62,15.28158056]
[1743022310384,25.272,138.66,138.62,15.28158056]
[1743022310982,0.03,138.66,138.64,15.21858056]
[1743022312088,0.03,138.66,138.65,15.21858056]
[1743022321716,0.03,138.66,138.65,22.43098056]
[1743022321927,0.03,138.66,138.65,22.57314213]
[1743022323027,0.03,138.66,138.65,22.43098056]
[1743022323413,0.03,138.66,138.65,22.57314213]
[1743022328523,0.03,138.66,138.65,15.21858056]
[1743022328720,0.03,138.66,138.63,0.14216157]
[1743022328934,0.03,138.66,138.63,15.21858056]
[1743022329332,0.03,138.66,138.64,15.21858056]
[1743022330133,0.03,138.66,138.62,8.8498]
[1743022330321,0.03,138.66,138.64,15.21858056]
[1743022331021,15.24858056,138.66,138.62,15.28158056]
[1743022331223,0.03,138.66,138.62,15.28158056]
[1743022331739,7.2418,138.66,138.62,15.28158056]
[1743022332036,0.03,138.66,138.64,15.21858056]
[1743022332217,0.03,138.66,138.65,35.21858056]
[1743022334542,0.03,138.66,138.62,0.20516157]
[1743022334741,0.03,138.66,138.62,15.28158056]
[1743022335636,7.2418,138.66,138.62,15.28158056]
[1743022337138,7.2418,138.66,138.63,15.21858056]
[1743022338023,0.03,138.66,138.65,15.21858056]
[1743022339943,0.03,138.66,138.65,22.43098056]
[1743022346148,0.03,138.66,138.65,22.57314213]
[1743022346335,0.03,138.66,138.65,22.43098056]
[1743022346534,0.03,138.66,138.65,22.57314213]
[1743022347736,0.03,138.66,138.65,15.36074213]
[1743022349248,0.03,138.66,138.65,15.21858056]
[1743022349829,0.03,138.66,138.64,6.28]
[1743022350129,0.03,138.66,138.62,0.20516157]
[1743022350356,15.21858056,138.65,138.62,0.063]
[1743022351240,15.21858056,138.64,138.62,0.063]
[1743022351842,7.2134,138.63,138.62,0.063]
[1743022353965,7.2129,138.64,138.62,0.063]
[1743022355641,7.2126,138.65,138.62,15.28158056]
[1743022357560,7.2418,138.66,138.62,15.28158056]
[1743022357862,7.2418,138.66,138.63,15.21858056]
[1743022358061,0.03,138.66,138.65,15.21858056]
[1743022358451,0.03,138.66,138.65,15.36074213]
[1743022360186,0.03,138.66,138.65,22.57314213]
[1743022361579,0.03,138.66,138.65,22.7153037]
[1743022362363,0.03,138.66,138.65,15.21858056]
[1743022362983,0.03,138.66,138.64,22.43138056]
[1743022363175,0.03,138.66,138.64,15.21858056]
[1743022363769,0.03,138.66,138.65,15.21858056]
[1743022364891,0.03,138.66,138.65,22.43098056]
[1743022366866,0.03,138.66,138.65,15.21858056]
[1743022370785,0.03,138.66,138.65,22.57314213]
[1743022374395,0.03,138.66,138.65,15.36074213]
[1743022376481,0.03,138.66,138.65,22.57314213]
[1743022377495,0.03,138.66,138.65,15.36074213]
[1743022378401,0.03,138.66,138.62,0.063]
[1743022378601,20.0,138.59,138.55,11.15621629]
[1743022378779,15.21858056,138.56,138.55,11.15621629]
[1743022378979,38.64964886,138.54,138.53,16.92049775]
[1743022379175,114.74255166,138.54,138.53,9.775e-05]
[1743022379785,53.86822942,138.54,138.53,9.775e-05]
[1743022380383,61.08632942,138.54,138.53,9.775e-05]
[1743022380899,69.6408757,138.54,138.53,9.775e-05]
[1743022381201,18.64964886,138.53,138.5,0.03]
[1743022381376,23.77312684,138.51,138.5,0.03]
[1743022383699,23.77312684,138.51,138.48,0.063]
[1743022383888,23.77312684,138.5,138.48,0.063]
[1743022384704,23.77312684,138.49,138.48,0.063]
[1743022385798,6.28,138.51,138.48,0.063]
[1743022385983,23.77312684,138.49,138.48,0.063]
[1743022386189,30.05312684,138.51,138.48,0.063]
[1743022386906,23.77312684,138.5,138.48,0.063]
[1743022388005,23.77312684,138.49,138.48,0.063]
[1743022389587,11.33067322,138.49,138.48,0.063]
[1743022389788,11.33067322,138.49,138.45,23.77312684]
[1743022390090,23.77312684,138.5,138.45,23.77312684]
[1743022390393,23.77312684,138.47,138.43,23.77312684]
[1743022390800,23.77312684,138.48,138.43,23.77312684]
[1743022394315,23.77312684,138.47,138.41,1.6282]
[1743022394499,23.77312684,138.47,138.42,23.77312684]
[1743022394703,23.77312684,138.48,138.43,23.77312684]
[1743022395201,23.77312684,138.47,138.42,23.77312684]
[1743022395814,23.77312684,138.48,138.43,23.77312684]
[1743022396005,23.77312684,138.48,138.43,23.80312684]
[1743022396911,23.77312684,138.47,138.43,0.03]
[1743022399305,23.77312684,138.46,138.43,0.03]
[1743022399502,23.77312684,138.45,138.43,0.03]
[1743022399919,23.77312684,138.44,138.43,0.03]
[1743022401017,23.77312684,138.44,138.39,15.22969991]
[1743022401018,15.22969991,138.44,138.39,15.22969991]
[1743022401397,15.22969991,138.45,138.4,15.22969991]
[1743022403324,15.22969991,138.45,138.4,22.45489991]
[1743022405529,22.45249991,138.45,138.4,22.45489991]
[1743022406827,15.22969991,138.44,138.4,22.45489991]
[1743022407231,107.87164886,138.47,138.41,15.22969991]
[1743022407412,15.22969991,138.45,138.4,22.45489991]
[1743022407929,15.22969991,138.45,138.4,22.48489991]
[1743022409131,15.22969991,138.45,138.4,7.2552]
[1743022411734,22.45249991,138.45,138.4,7.2552]
[1743022412419,22.45249991,138.45,138.39,15.22969991]
[1743022413552,22.45249991,138.45,138.4,15.22969991]
[1743022414647,22.45249991,138.45,138.4,22.45479991]
[1743022415021,7.2228,138.45,138.39,15.22969991]
[1743022415317,22.45249991,138.45,138.39,15.22969991]
[1743022415518,22.45249991,138.45,138.38,111.97234213]
[1743022415719,7.2228,138.45,138.38,111.97234213]
[1743022416238,7.2228,138.45,138.39,7.2259]
[1743022416836,22.45219991,138.46,138.4,15.22969991]
[1743022417233,15.22969991,138.45,138.4,15.22969991]
[1743022418740,7.2225,138.46,138.4,22.45469991]
[1743022418922,15.22969991,138.45,138.4,7.225]
[1743022420132,22.51579991,138.45,138.4,7.225]
[1743022424339,22.45349991,138.43,138.38,0.03]
[1743022424537,15.22969991,138.39,138.38,0.03]
[1743022424953,15.22969991,138.4,138.38,0.03]
[1743022426547,22.45529991,138.4,138.38,0.03]
[1743022427925,7.2251,138.41,138.38,0.03]
[1743022429362,22.45479991,138.41,138.38,0.03]
[1743022430960,7.36806157,138.39,138.38,0.03]
[1743022431159,47.38524877,138.39,138.38,0.03]
[1743022432342,28.73559991,138.39,138.38,0.03]
[1743022433434,47.66957191,138.39,138.38,0.0001]
[1743022434571,47.52741034,138.39,138.38,0.0001]
[1743022434961,47.66957191,138.39,138.38,0.0001]
[1743022435258,28.73559991,138.39,138.38,0.0001]
[1743022435761,47.38524877,138.39,138.38,0.0001]
[1743022435961,108.30404841,138.39,138.38,0.0001]
[1743022436171,47.38524877,138.39,138.38,0.0001]
[1743022438858,13.5059,138.39,138.38,0.0001]
[1743022440074,28.73559991,138.39,138.38,0.0001]
[1743022455484,47.52741034,138.39,138.38,0.0001]
[1743022455665,108.44620998,138.39,138.38,0.0001]
[1743022456079,108.50920998,138.39,138.38,0.0001]
[1743022456568,18.64964886,138.38,138.37,0.0001]
[1743022456768,33.87934877,138.38,138.37,0.0001]
[1743022457465,41.10574877,138.38,138.37,0.0001]
[1743022457760,41.24791034,138.38,138.37,0.0001]
[1743022462500,41.39007191,138.38,138.37,0.0001]
[1743022468804,41.45307191,138.38,138.37,0.0001]
[1743022470595,61.45307191,138.38,138.37,0.0001]
[1743022470801,18.64964886,138.34,138.29,1.527]
[1743022471018,15.22969991,138.33,138.29,1.527]
[1743022472122,7.2296,138.32,138.29,1.527]
[1743022472625,22.45929991,138.32,138.29,1.527]
[1743022472807,7.2296,138.32,138.29,1.527]
[1743022473502,22.45929991,138.32,138.29,1.527]
[1743022474020,7.2296,138.32,138.29,1.527]
[1743022475701,25.3036,138.32,138.29,1.527]
[1743022479911,33.30369991,138.32,138.29,1.527]
[1743022480613,15.22969991,138.31,138.29,1.527]
[1743022480922,15.22969991,138.31,138.28,0.03]
[1743022481925,7.2306,138.3,138.28,0.03]
[1743022482622,103.50969991,138.29,138.26,0.03]
[1743022482827,33.87934877,138.27,138.21,16.78659991]
[1743022483024,15.22969991,138.25,138.21,16.78659991]
[1743022483319,15.22969991,138.26,138.22,15.22969991]
[1743022483527,15.22969991,138.27,138.22,15.22969991]
[1743022484224,25.3145,138.26,138.24,15.22969991]
[1743022484424,25.3145,138.26,138.23,15.22969991]
[1743022485325,25.3145,138.26,138.21,1.5569]
[1743022485623,40.54419991,138.26,138.22,15.22969991]
[1743022486424,25.3145,138.26,138.22,15.22969991]
[1743022487130,40.54419991,138.26,138.22,15.22969991]
[1743022487336,40.54419991,138.26,138.21,16.78659991]
[1743022489119,15.22969991,138.24,138.21,1.5569]
[1743022490022,7.2343,138.23,138.21,1.5569]
[1743022490824,7.2343,138.23,138.18,78.67764222]
[1743022490825,15.22969991,138.22,138.18,15.22969991]
[1743022491717,40.54969991,138.23,138.18,15.22969991]
[1743022491929,40.54969991,138.23,138.21,0.03]
[1743022494014,25.32,138.23,138.21,0.03]
[1743022497234,40.54969991,138.23,138.21,0.03]
[1743022497435,15.22969991,138.22,138.21,0.03]
[1743022498329,22.46449991,138.22,138.21,0.03]
[1743022498520,7.2348,138.22,138.21,0.03]
[1743022502618,22.46449991,138.22,138.21,0.03]
[1743022503533,15.22969991,138.19,138.17,1.5642]
[1743022503725,15.22969991,138.18,138.15,0.03]
[1743022503912,15.22969991,138.16,138.15,0.03]
[1743022504242,33.87934877,138.16,138.15,0.0001]
[1743022505243,34.16367191,138.16,138.15,0.0001]
[1743022505925,34.02151034,138.16,138.15,0.0001]
[1743022506539,41.40157191,138.16,138.15,0.0001]
[1743022508639,33.87934877,138.15,138.14,0.5]
[1743022509337,34.02151034,138.15,138.08,1.6333]
[1743022509543,15.22969991,138.1,138.08,1.6333]
[1743022509846,21.50969991,138.1,138.08,1.6333]
[1743022510045,6.28,138.1,138.08,1.6333]
[1743022510632,15.22969991,138.13,138.08,16.86299991]
[1743022510821,15.22969991,138.12,138.08,1.6333]
[1743022511035,6.28,138.13,138.08,16.86299991]
[1743022511345,6.28,138.13,138.1,15.22969991]
[1743022511521,6.28,138.13,138.09,15.22969991]
[1743022511721,28.74919991,138.13,138.09,15.22969991]
[1743022511943,21.50969991,138.13,138.08,1.6333]
[1743022512135,21.50969991,138.13,138.09,15.22969991]
[1743022512337,22.46889991,138.14,138.09,15.22969991]
[1743022512541,7.2392,138.14,138.1,15.22969991]
[1743022512842,28.74829991,138.15,138.1,15.22969991]
[1743022513236,15.22969991,138.14,138.1,6.0572]
[1743022513635,28.74829991,138.15,138.1,21.28689991]
[1743022513836,13.5186,138.15,138.11,15.22969991]
[1743022514541,28.74829991,138.15,138.1,21.28689991]
[1743022514744,15.22969991,138.13,138.1,6.0572]
[1743022515044,15.22969991,138.12,138.08,1.6333]
[1743022515248,15.22969991,138.11,138.08,1.6333]
[1743022515621,82.0,138.14,138.08,1.6333]
[1743022515622,15.22969991,138.1,138.08,1.6333]
[1743022516237,15.22969991,138.1,138.08,0.03]
[1743022516935,15.22969991,138.11,138.08,0.03]
[1743022519136,22.47039991,138.11,138.08,0.03]
[1743022522253,7.2401,138.12,138.08,15.25969991]
[1743022522747,22.46979991,138.12,138.08,15.25969991]
[1743022524650,15.22969991,138.11,138.08,0.03]
[1743022525548,7.2411,138.1,138.08,0.03]
[1743022526438,22.47049991,138.11,138.08,0.03]
[1743022526642,15.22969991,138.12,138.08,0.03]
[1743022528350,22.47009991,138.12,138.08,0.03]
[1743022528645,13.5206,138.11,138.08,0.03]
[1743022529024,6.28,138.11,138.09,15.22969991]
[1743022529617,89.2399,138.13,138.09,15.22969991]
[1743022529818,95.5199,138.13,138.09,15.22969991]
[1743022531554,6.28,138.13,138.1,15.22969991]
[1743022531855,13.5192,138.14,138.1,15.22969991]
[1743022533724,7.2392,138.14,138.1,15.22969991]
[1743022534224,7.2392,138.14,138.11,15.22969991]
[1743022535034,7.2392,138.14,138.1,15.22969991]
[1743022536141,22.46889991,138.14,138.08,0.03]
[1743022536449,40.56639991,138.14,138.09,15.22969991]
[1743022536835,40.56639991,138.14,138.1,15.22969991]
[1743022538341,22.46889991,138.14,138.1,15.22969991]
[1743022539253,40.56639991,138.14,138.1,15.25969991]
[1743022539552,22.46889991,138.14,138.1,15.25969991]
[1743022540648,7.2392,138.14,138.1,15.25969991]
[1743022541855,7.2392,138.14,138.11,16.73129991]
[1743022542037,6.28,138.16,138.13,15.22969991]
[1743022542738,216.0572,138.18,138.14,15.22969991]
[1743022542947,216.0572,138.18,138.15,15.22969991]
[1743022543334,216.0572,138.18,138.14,15.22969991]
[1743022548354,216.0572,138.18,138.12,7.2399]
[1743022548543,216.0572,138.18,138.15,15.22969991]
[1743022549034,216.0572,138.18,138.16,15.22969991]
[1743022549035,7.2372,138.18,138.16,15.22969991]
[1743022550252,7.2364,138.19,138.16,15.22969991]
[1743022550644,40.55709991,138.19,138.15,15.22969991]
[1743022550844,15.22969991,138.18,138.12,0.14216157]
[1743022551046,15.22969991,138.18,138.14,15.22969991]
[1743022551756,7.2374,138.17,138.13,15.22969991]
[1743022552360,7.2374,138.17,138.14,15.22969991]
[1743022553984,7.3001,138.18,138.15,15.22969991]
[1743022554550,7.3001,138.18,138.14,15.22969991]
[1743022558869,7.3001,138.18,138.15,15.22969991]
[1743022559967,0.063,138.18,138.15,15.22969991]
[1743022560345,0.063,138.18,138.13,7.2395]
[1743022560544,0.063,138.18,138.15,15.22969991]
[1743022564857,0.063,138.18,138.12,0.14216157]
[1743022564858,0.063,138.18,138.16,15.22969991]
[1743022566078,0.063,138.18,138.17,15.22969991]
[1743022566960,0.063,138.18,138.17,15.37186148]
[1743022570870,0.063,138.18,138.17,15.22969991]
[1743022574986,0.063,138.18,138.17,15.37186148]
[1743022578891,0.063,138.18,138.13,0.03]
[1743022578892,15.29269991,138.18,138.13,0.03]
[1743022579190,15.29269991,138.18,138.14,15.22969991]
[1743022579394,25.331,138.17,138.14,15.22969991]
[1743022580093,25.331,138.17,138.13,15.25969991]
[1743022580592,40.56069991,138.17,138.13,0.03]
[1743022580784,40.56069991,138.17,138.13,15.25969991]
[1743022583289,40.56069991,138.17,138.13,0.03]
[1743022585400,15.22969991,138.16,138.13,0.03]
[1743022586213,15.22969991,138.14,138.13,0.03]
[1743022587299,15.22969991,138.15,138.13,0.03]
[1743022587988,62.63599964,138.18,138.13,0.03]
[1743022587989,22.46869991,138.14,138.13,0.0001]
[1743022589979,15.22969991,138.15,138.13,0.0001]
[1743022592702,7.239,138.14,138.13,0.0001]
[1743022595094,22.46869991,138.14,138.13,0.0001]
[1743022596184,76.76129991,138.14,138.08,15.22969991]
[1743022596507,15.22969991,138.13,138.08,15.22969991]
[1743022597008,25.3402,138.12,138.08,15.22969991]
[1743022597582,25.0402,138.12,138.08,15.22969991]
[1743022598690,76.47029991,138.12,138.07,15.22969991]
[1743022599035,61.2406,138.12,138.08,15.22969991]
[1743022600509,61.2406,138.12,138.09,15.22969991]
[1743022600811,25.0402,138.12,138.11,15.22969991]
[1743022601003,61.5316,138.14,138.11,15.22969991]
[1743022601191,61.5316,138.14,138.12,15.22969991]
[1743022601689,61.5316,138.14,138.11,15.22969991]
[1743022602711,25.3365,138.14,138.12,15.22969991]
[1743022604016,25.3365,138.14,138.13,15.22969991]
[1743022604912,25.331,138.17,138.13,15.22969991]
[1743022605215,40.56069991,138.17,138.13,15.22969991]
[1743022607717,25.331,138.17,138.13,15.22969991]
[1743022611324,40.56069991,138.17,138.13,15.22969991]
[1743022612103,40.56069991,138.17,138.11,1.5336]
[1743022612419,76.74799991,138.17,138.13,15.22969991]
[1743022615226,25.3347,138.15,138.12,15.25969991]
[1743022615825,25.3347,138.15,138.13,15.22969991]
[1743022616003,7.2379,138.16,138.14,15.22969991]
[1743022616206,7.2379,138.16,138.15,15.22969991]
[1743022616522,25.3328,138.16,138.14,15.22969991]
[1743022616706,25.3328,138.16,138.12,0.03]
[1743022616707,40.56249991,138.16,138.12,0.03]
[1743022617630,15.22969991,138.14,138.12,0.0001]
[1743022618004,33.32589991,138.15,138.12,0.0001]
[1743022618213,40.56439991,138.15,138.12,0.0001]
[1743022618533,15.22969991,138.14,138.12,0.0001]
[1743022620032,7.2395,138.13,138.12,0.0001]
[1743022623827,22.46919991,138.13,138.12,0.0001]
[1743022625236,22.46919991,138.13,138.08,0.0001]
[1743022625237,20.0,138.1,138.08,0.0001]
[1743022625435,7.2416,138.09,138.08,0.0001]
[1743022625643,7.2416,138.09,138.08,15.22979991]
[1743022627425,18.1019,138.11,138.08,15.22979991]
[1743022627613,7.24,138.12,138.1,15.22969991]
[1743022627937,7.24,138.12,138.11,15.22969991]
[1743022628245,7.24,138.12,138.08,0.0001]
[1743022628246,40.56989991,138.12,138.08,0.0001]
[1743022628535,25.3402,138.12,138.08,15.22979991]
[1743022628742,40.56989991,138.12,138.08,0.0001]
[1743022630137,15.22969991,138.09,138.08,0.0001]
[1743022630639,15.22969991,138.09,138.04,8.87e-05]
[1743022630841,18.64964886,138.1,138.05,15.22969991]
[1743022631019,82.0,138.11,138.06,15.22969991]
[1743022631341,97.22969991,138.11,138.06,15.22969991]
[1743022631838,97.22969991,138.11,138.05,15.22969991]
[1743022631839,76.77919991,138.1,138.05,15.22969991]
[1743022632328,15.22969991,138.09,138.04,15.22978861]
[1743022632717,15.22969991,138.09,138.05,15.22969991]
[1743022633820,25.3475,138.08,138.05,15.22969991]
[1743022634127,25.3475,138.08,138.04,8.87e-05]
[1743022634322,40.57719991,138.08,138.04,8.87e-05]
[1743022634538,15.22969991,138.07,138.04,8.87e-05]
[1743022634727,46.85719991,138.08,138.04,8.87e-05]
[1743022636560,46.85719991,138.08,138.04,15.22978861]
[1743022637243,46.85719991,138.08,138.04,8.87e-05]
[1743022637939,46.85719991,138.08,138.04,15.22978861]
[1743022638243,31.6275,138.08,138.04,15.22978861]
[1743022639437,31.6275,138.08,138.06,15.22969991]
[1743022639639,31.6275,138.08,138.07,15.22969991]
[1743022639823,25.3475,138.08,138.07,15.22969991]
[1743022640236,25.3475,138.08,138.06,15.22969991]
[1743022640443,25.3475,138.08,138.05,15.22969991]
[1743022640738,25.3475,138.08,138.04,15.22978861]
[1743022640947,40.57719991,138.08,138.04,15.22978861]
[1743022641433,40.57719991,138.08,138.04,8.87e-05]
[1743022642451,7.2432,138.06,138.04,15.22978861]
[1743022642826,7.2432,138.06,138.04,8.87e-05]
[1743022643331,76.79699991,138.06,138.01,15.22969991]
[1743022643539,61.5673,138.06,138.02,15.22969991]
[1743022643848,61.5673,138.06,138.03,15.22969991]
[1743022644853,76.79699991,138.06,137.99,1.5592]
[1743022645145,76.79699991,138.06,138.02,15.22969991]
[1743022646024,25.3512,138.06,138.02,15.22969991]
[1743022646725,40.58089991,138.06,138.01,15.22969991]
[1743022647139,33.87934877,138.05,138.0,15.22969991]
[1743022648235,25.3512,138.06,138.02,15.22969991]
[1743022649147,25.3512,138.06,138.01,15.22969991]
[1743022649148,18.64964886,138.05,138.01,15.22969991]
[1743022649726,33.87934877,138.05,138.0,15.22969991]
[1743022650425,18.64964886,138.05,138.01,15.22969991]
[1743022651149,7.2442,138.04,138.01,15.22969991]
[1743022651755,7.2442,138.04,138.02,15.22969991]
[1743022652330,7.2442,138.04,138.03,15.22969991]
[1743022653141,25.3512,138.06,138.03,15.22969991]
[1743022656345,40.58089991,138.06,137.99,1.5592]
[1743022656545,40.58089991,138.06,138.01,15.22969991]
[1743022656734,15.22969991,138.05,137.99,1.5592]
[1743022657051,15.22969991,138.03,138.0,0.03]
[1743022657251,100.64964886,138.05,138.0,0.03]
[1743022657252,15.22969991,138.02,138.0,0.03]
[1743022657430,15.22969991,138.03,138.0,0.03]
[1743022657631,15.22969991,138.03,137.98,15.22969991]
[1743022658464,25.3586,138.02,137.98,15.22969991]
[1743022659363,7.2453,138.02,138.01,15.22969991]
[1743022659963,7.2453,138.02,138.0,15.22969991]
[1743022660127,7.2453,138.02,137.95,87.50824222]
[1743022660332,7.2453,138.02,137.99,15.22969991]
[1743022660562,25.3579,138.03,137.99,15.22969991]
[1743022660860,25.3579,138.03,138.0,15.22969991]
[1743022662754,7.2442,138.04,138.01,15.22969991]
[1743022663935,7.2442,138.04,138.02,15.22969991]
[1743022665055,7.244,138.05,138.03,15.22969991]
[1743022665638,7.244,138.05,138.02,15.22969991]
[1743022665839,7.244,138.05,138.03,15.22969991]
[1743022667760,7.3062,138.06,138.03,15.22969991]
[1743022669156,0.063,138.06,138.05,15.22969991]
[1743022671780,0.063,138.06,138.05,16.81579991]
[1743022671959,0.063,138.06,138.05,24.05949991]
[1743022672673,0.063,138.06,138.05,24.34382305]
[1743022672851,0.063,138.09,138.08,15.22969991]
[1743022674099,0.063,138.09,138.08,22.75612305]
[1743022674569,0.063,138.09,138.08,15.22969991]
[1743022682376,0.063,138.13,138.1,1.63]
[1743022682556,0.063,138.13,138.12,15.22969991]
[1743022695164,0.063,138.13,138.12,15.51402305]
[1743022696994,0.063,138.13,138.12,15.22969991]
[1743022698571,0.063,138.13,138.12,120.08131413]
[1743022698776,7.3004,138.17,138.16,15.22969991]
[1743022700302,0.063,138.17,138.16,15.22969991]
[1743022701893,0.063,138.18,138.16,15.22969991]
[1743022701894,0.063,138.18,138.16,155.11046491]
[1743022702097,0.063,138.19,138.17,76.14849955]
[1743022702400,0.063,138.19,138.18,15.22969991]
[1743022703195,0.063,138.19,138.18,76.14849955]
[1743022703396,0.063,138.22,138.21,35.22969991]
[1743022703602,0.063,138.22,138.21,41.50969991]
[1743022705105,0.063,138.22,138.21,15.22969991]
[1743022710695,0.063,138.22,138.2,15.22969991]
[1743022710897,0.063,138.22,138.19,15.22969991]
[1743022711099,0.063,138.22,138.21,15.22969991]
[1743022714889,0.063,138.22,138.21,23.85181853]
[1743022719400,42.56446739,138.22,138.19,0.03]
[1743022719607,23.85181853,138.21,138.19,0.03]
[1743022722000,7.2358,138.2,138.19,0.03]
[1743022722303,49.73726739,138.2,138.19,0.03]
[1743022723083,7.2358,138.2,138.19,0.03]